bitfinex/quotes_SOLUSD_20240714
["timestamp","ask_amount","ask_price","bid_price","bid_amount"]
[1720977760121,11.08,145.38,145.36,6.8793]
[1720977760511,11.08,145.38,145.37,6.8789]
[1720977761332,11.08,145.38,145.36,6.8794]
[1720977763135,6.8771,145.41,145.36,6.8794]
[1720977763433,11.08,145.38,145.37,6.8789]
[1720977766437,11.08,145.38,145.34,6.8802]
[1720977766646,11.08,145.35,145.34,6.8802]
[1720977771147,6.8788,145.38,145.34,6.8802]
[1720977771447,11.08,145.35,145.34,6.8802]
[1720977771848,11.08,145.35,145.33,6.8807]
[1720977772054,11.08,145.34,145.33,6.8807]
[1720977772435,11.08,145.34,145.27,6.309]
[1720977772748,11.08,145.33,145.31,6.8814]
[1720977773046,6.8795,145.36,145.31,6.8814]
[1720977773228,11.08,145.33,145.31,6.8814]
[1720977773638,11.08,145.33,145.32,6.8813]
[1720977774839,11.08,145.34,145.32,6.8813]
[1720977776748,11.08,145.33,145.32,6.8813]
[1720977777763,11.08,145.34,145.32,6.8813]
[1720977781264,11.08,145.33,145.31,6.8816]
[1720977781435,11.08,145.33,145.28,15.7863]
[1720977781642,11.08,145.33,145.3,6.8821]
[1720977781843,11.08,145.33,145.31,6.8817]
[1720977787866,2.7891692,145.41,145.3,15.7863]
[1720977788055,11.08,145.4,145.37,6.8786]
[1720977788241,6.8766,145.42,145.37,6.8786]
[1720977788556,11.08,145.4,145.37,6.8786]
[1720977788854,11.08,145.4,145.38,6.8783]
[1720977789055,11.08,145.41,145.38,6.8783]
[1720977789561,11.08,145.41,145.37,7.34363389]
[1720977789754,6.8766,145.42,145.37,7.34363389]
[1720977789938,11.08,145.41,145.37,8.2545294]
[1720977791547,11.08,145.38,145.31,36.3412]
[1720977791749,11.08,145.36,145.33,6.8807]
[1720977792264,6.8791,145.37,145.31,27.4212]
[1720977792265,11.08,145.35,145.32,6.8813]
[1720977792552,11.08,145.35,145.31,23.2226]
[1720977792758,11.08,145.35,145.32,6.8812]
[1720977792946,11.08,145.34,145.32,6.8812]
[1720977793461,45.0,145.42,145.31,16.3412]
[1720977793764,45.0,145.42,145.34,6.8803]
[1720977793765,11.08,145.36,145.34,6.8803]
[1720977793937,11.08,145.36,145.33,6.8808]
[1720977794136,11.08,145.35,145.33,6.8808]
[1720977796662,6.8786,145.38,145.33,6.8808]
[1720977796960,11.08,145.35,145.33,6.8808]
[1720977797145,11.08,145.36,145.33,6.8808]
[1720977798357,6.8783,145.39,145.31,27.4212]
[1720977798663,11.08,145.36,145.34,6.8802]
[1720977798845,6.8786,145.38,145.33,6.8807]
[1720977799045,11.08,145.36,145.33,6.8807]
[1720977799465,6.8786,145.38,145.33,6.8807]
[1720977799754,11.08,145.35,145.33,6.8807]
[1720977801048,6.879,145.37,145.33,6.8807]
[1720977801049,11.08,145.34,145.33,6.8807]
[1720977801241,11.08,145.35,145.33,6.8807]
[1720977801737,11.08,145.34,145.32,6.8812]
[1720977803843,11.08,145.35,145.33,6.8808]
[1720977804650,11.08,145.35,145.31,16.3412]
[1720977805159,11.08,145.34,145.32,6.8812]
[1720977808176,11.08,145.34,145.33,6.8808]
[1720977808368,6.8791,145.37,145.33,6.8808]
[1720977808546,11.08,145.35,145.33,6.8808]
[1720977810377,11.08,145.35,145.32,6.8812]
[1720977810574,11.08,145.34,145.32,6.8812]
[1720977810767,11.08,145.33,145.31,6.8817]
[1720977810978,6.88,145.35,145.31,6.8817]
[1720977810979,11.08,145.32,145.31,6.8817]
[1720977811181,11.08,145.32,145.28,6.8831]
[1720977811384,11.08,145.3,145.28,6.8831]
[1720977811696,11.08,145.3,145.29,6.8827]
[1720977811977,11.08,145.32,145.27,27.4212]
[1720977812168,23.0239,145.37,145.27,27.4212]
[1720977812479,11.08,145.32,145.27,27.4212]
[1720977813390,11.08,145.32,145.3,6.8821]
[1720977813687,11.08,145.33,145.31,6.8817]
[1720977815177,11.08,145.33,145.3,6.8822]
[1720977816908,11.08,145.32,145.3,6.8822]
[1720977817395,11.08,145.31,145.29,6.8826]
[1720977819496,11.08,145.32,145.29,6.8826]
[1720977819698,11.08,145.32,145.3,6.8822]
[1720977820993,17.9621,145.31,145.27,6.8836]
[1720977821301,11.08,145.29,145.26,6.8841]
[1720977822400,55.4,145.27,145.21,0.2]
[1720977822697,48.89267171,145.26,145.21,0.2]
[1720977822890,11.08,145.22,145.21,0.2]
[1720977823090,17.9661,145.22,145.21,0.2]
[1720977823302,11.08,145.22,145.21,0.2]
[1720977824322,6.8857,145.23,145.21,0.2]
[1720977824628,11.08,145.22,145.21,0.2]
[1720977826089,17.9661,145.22,145.21,0.2]
[1720977828709,47.9661,145.22,145.21,0.2]
[1720977832027,36.8861,145.22,145.21,0.2]
[1720977832189,47.9661,145.22,145.21,0.2]
[1720977835406,36.8861,145.22,145.21,0.2]
[1720977835611,30.0,145.22,145.21,0.2]
[1720977835808,41.08,145.22,145.21,0.2]
[1720977836193,47.9661,145.22,145.21,0.2]
[1720977837808,17.9661,145.22,145.21,0.2]
[1720977838020,45.0,145.26,145.21,0.2]
[1720977838187,11.08,145.22,145.21,0.2]
[1720977838390,17.9661,145.22,145.21,0.2]
[1720977838592,11.08,145.22,145.21,0.2]
[1720977838915,11.08,145.23,145.21,0.2]
[1720977839101,11.08,145.22,145.21,0.2]
[1720977840116,6.8852,145.24,145.21,0.2]
[1720977840412,11.08,145.22,145.21,0.2]
[1720977841423,6.8852,145.24,145.21,0.2]
[1720977841613,11.08,145.23,145.21,0.2]
[1720977843093,6.885,145.25,145.21,0.2]
[1720977843298,17.9657,145.23,145.21,0.2]
[1720977843506,11.08,145.22,145.21,0.2]
[1720977844114,17.9657,145.23,145.21,0.2]
[1720977844504,11.08,145.23,145.21,0.2]
[1720977844813,11.08,145.24,145.21,0.2]
[1720977845714,11.08,145.24,145.08,44.8233605]
[1720977845715,21.7282,145.22,145.11,0.2]
[1720977845899,38.944,145.22,145.11,11.28]
[1720977846100,21.7282,145.22,145.11,0.2]
[1720977846402,6.8871,145.2,145.11,0.2]
[1720977846608,6.8871,145.2,145.14,11.08]
[1720977846915,17.9671,145.2,145.15,11.08]
[1720977847419,11.08,145.19,145.14,11.08]
[1720977849222,17.9674,145.2,145.15,11.08]
[1720977849423,11.08,145.2,145.15,11.08]
[1720977850018,17.9666,145.21,145.16,11.08]
[1720977850626,21.7282,145.26,145.17,26.6117]
[1720977850818,17.9657,145.23,145.18,11.08]
[1720977852125,6.8861,145.22,145.17,15.5317]
[1720977852315,11.08,145.22,145.17,26.6117]
[1720977852504,11.08,145.21,145.14,15.0487]
[1720977852705,17.9671,145.2,145.15,11.08]
[1720977853323,17.9664,145.22,145.17,11.08]
[1720977853622,11.08,145.2,145.15,11.08]
[1720977854406,17.967,145.2,145.15,11.08]
[1720977854808,11.08,145.2,145.15,11.08]
[1720977859121,11.08,145.2,145.14,15.0487]
[1720977859425,11.08,145.21,145.16,11.08]
[1720977860134,6.8862,145.22,145.16,11.08]
[1720977860434,11.08,145.21,145.16,11.08]
[1720977861034,6.8866,145.21,145.17,11.08]
[1720977861229,17.9666,145.21,145.16,11.08]
[1720977862631,6.8857,145.23,145.18,11.08]
[1720977862817,6.8852,145.24,145.18,11.08]
[1720977863124,11.08,145.23,145.18,11.08]
[1720977863524,17.9652,145.24,145.19,11.08]
[1720977863916,6.8852,145.24,145.19,11.08]
[1720977864116,6.8845,145.26,145.21,11.08]
[1720977864540,17.9645,145.26,145.21,11.08]
[1720977864727,6.8846,145.25,145.21,11.08]
[1720977865630,6.8843,145.26,145.22,11.08]
[1720977866231,6.8847,145.25,145.22,11.08]
[1720977866439,6.8847,145.25,145.2,15.0487]
[1720977866626,6.8847,145.25,145.21,11.08]
[1720977867539,3.89290165,145.24,145.21,11.08]
[1720977867741,6.8847,145.25,145.21,11.08]
[1720977867933,3.89290246,145.24,145.21,11.08]
[1720977868239,11.08,145.25,145.16,15.0487]
[1720977868439,3.89289326,145.24,145.19,11.08]
[1720977868643,10.77859326,145.23,145.19,11.08]
[1720977868832,6.8857,145.23,145.19,11.08]
[1720977869142,6.8857,145.23,145.16,15.0487]
[1720977869649,6.8853,145.24,145.19,11.08]
[1720977869824,3.89287448,145.23,145.19,11.08]
[1720977870024,6.8853,145.24,145.19,11.08]
[1720977870232,3.8928155,145.23,145.19,11.08]
[1720977870426,6.8853,145.24,145.19,11.08]
[1720977870632,3.89288702,145.23,145.19,11.08]
[1720977870948,6.8853,145.24,145.19,11.08]
[1720977871139,3.89276386,145.23,145.19,11.08]
[1720977871340,6.8853,145.24,145.19,11.08]
[1720977871660,3.89276133,145.23,145.19,11.08]
[1720977871829,6.8853,145.24,145.19,11.08]
[1720977872027,3.89260231,145.23,145.19,11.08]
[1720977872228,6.8853,145.24,145.19,11.08]
[1720977872465,3.89260231,145.23,145.19,11.08]
[1720977872746,6.8853,145.24,145.19,11.08]
[1720977872948,3.89260312,145.23,145.19,11.08]
[1720977873127,6.8853,145.24,145.19,11.08]
[1720977873322,3.89226625,145.23,145.2,11.08]
[1720977873536,6.8848,145.25,145.16,15.0487]
[1720977873537,6.8848,145.25,145.21,11.08]
[1720977873736,3.89227144,145.24,145.21,11.08]
[1720977873930,3.89227144,145.23,145.21,11.08]
[1720977874226,17.9648,145.25,145.2,11.08]
[1720977874427,3.892262,145.24,145.2,11.08]
[1720977874655,6.8848,145.25,145.2,11.08]
[1720977874844,3.89226281,145.24,145.21,11.08]
[1720977875044,6.8848,145.25,145.21,11.08]
[1720977875352,3.89227395,145.24,145.21,11.08]
[1720977875548,6.8848,145.25,145.21,11.08]
[1720977875754,3.89226924,145.24,145.21,11.08]
[1720977875966,6.8848,145.25,145.21,11.08]
[1720977876263,3.8922297,145.24,145.21,11.08]
[1720977876557,6.8848,145.25,145.16,15.0487]
[1720977876738,22.748,145.29,145.17,45.0]
[1720977876739,3.89197839,145.24,145.17,45.0]
[1720977876942,11.08,145.24,145.19,11.08]
[1720977877151,6.8856,145.23,145.19,11.08]
[1720977877337,6.8856,145.23,145.16,15.0487]
[1720977877536,6.8856,145.23,145.19,11.08]
[1720977878037,17.9653,145.24,145.19,11.08]
[1720977878237,3.89193144,145.23,145.19,11.08]
[1720977878451,17.9653,145.24,145.19,11.08]
[1720977878657,10.77753042,145.23,145.19,11.08]
[1720977878861,6.8856,145.23,145.19,11.08]
[1720977879070,17.9652,145.24,145.19,11.08]
[1720977879236,3.89189661,145.23,145.19,11.08]
[1720977879559,17.9652,145.24,145.19,11.08]
[1720977879731,3.89189661,145.23,145.19,11.08]
[1720977879936,17.9652,145.24,145.19,11.08]
[1720977880136,3.8918927,145.23,145.19,11.08]
[1720977880360,17.9652,145.24,145.19,11.08]
[1720977880553,3.8918927,145.23,145.19,11.08]
[1720977880861,17.9652,145.24,145.19,11.08]
[1720977881061,3.89189189,145.23,145.19,11.08]
[1720977881248,17.9652,145.24,145.19,11.08]
[1720977881443,11.08,145.22,145.16,15.0487]
[1720977881839,11.08,145.22,145.17,11.08]
[1720977883062,17.9659,145.23,145.18,11.08]
[1720977884963,17.9659,145.23,145.16,15.0487]
[1720977885143,17.9659,145.23,145.18,11.08]
[1720977886962,17.9659,145.23,145.16,15.0487]
[1720977887143,17.9659,145.23,145.18,11.08]
[1720977890863,11.08,145.23,145.18,11.08]
[1720977893769,17.9653,145.24,145.19,11.08]
[1720977894066,3.89253958,145.23,145.19,11.08]
[1720977894239,17.9653,145.24,145.19,11.08]
[1720977894440,3.89254165,145.23,145.19,11.08]
[1720977894664,6.8853,145.24,145.19,11.08]
[1720977894865,3.89254246,145.23,145.19,11.08]
[1720977895169,11.08,145.24,145.19,11.08]
[1720977895370,3.89254246,145.23,145.19,11.08]
[1720977895747,17.9648,145.25,145.2,11.08]
[1720977896044,3.89250415,145.24,145.2,11.08]
[1720977896369,3.89250415,145.23,145.2,11.08]
[1720977896550,3.89250415,145.24,145.2,11.08]
[1720977897271,3.89250415,145.24,145.21,11.08]
[1720977897463,3.89250415,145.25,145.21,11.08]
[1720977898872,6.8846,145.25,145.21,11.08]
[1720977899073,3.89254663,145.24,145.21,11.08]
[1720977899272,3.89254663,145.23,145.21,11.08]
[1720977899456,6.8846,145.25,145.21,11.08]
[1720977899656,3.89254826,145.24,145.21,11.08]
[1720977899852,3.89254826,145.23,145.21,11.08]
[1720977900053,3.89254826,145.24,145.21,11.08]
[1720977900258,6.8851,145.24,145.21,11.08]
[1720977900959,6.8851,145.24,145.16,15.0487]
[1720977901165,6.8851,145.24,145.2,11.08]
[1720977901363,3.89323619,145.23,145.2,11.08]
[1720977901544,6.8851,145.24,145.2,11.08]
[1720977901745,3.8932363,145.23,145.2,11.08]
[1720977901965,6.8851,145.24,145.2,11.08]
[1720977902170,3.89322188,145.23,145.2,11.08]
[1720977902475,17.9648,145.25,145.2,11.08]
[1720977902653,3.89330213,145.24,145.2,11.08]
[1720977902848,17.9648,145.25,145.2,11.08]
[1720977903053,3.89319604,145.24,145.2,11.08]
[1720977904860,3.89303484,145.23,145.2,11.08]
[1720977905056,17.9648,145.25,145.2,11.08]
[1720977905258,3.89316082,145.24,145.2,11.08]
[1720977905461,3.89316082,145.23,145.2,11.08]
[1720977905672,17.9648,145.25,145.2,11.08]
[1720977905873,3.89327314,145.24,145.2,11.08]
[1720977906170,3.89327314,145.23,145.2,11.08]
[1720977906475,17.9648,145.25,145.2,11.08]
[1720977906654,3.89324645,145.24,145.2,11.08]
[1720977906859,3.89324645,145.23,145.2,11.08]
[1720977907078,17.9648,145.25,145.2,11.08]
[1720977907259,3.8931215,145.24,145.2,11.08]
[1720977907464,3.8931215,145.23,145.2,11.08]
[1720977907775,6.8843,145.26,145.21,11.08]
[1720977907963,3.89283637,145.25,145.21,11.08]
[1720977908156,17.9643,145.26,145.21,11.08]
[1720977908358,10.7774664,145.25,145.21,11.08]
[1720977908552,3.8927664,145.24,145.21,11.08]
[1720977908857,3.8927664,145.23,145.21,11.08]
[1720977909049,6.8847,145.25,145.21,11.08]
[1720977909253,3.89269202,145.24,145.21,11.08]
[1720977909557,3.89269202,145.23,145.21,11.08]
[1720977909753,6.8847,145.25,145.21,11.08]
[1720977909953,3.89239551,145.24,145.21,11.08]
[1720977910173,3.89239551,145.23,145.21,11.08]
[1720977910377,3.89239551,145.24,145.21,11.08]
[1720977910563,3.89237467,145.23,145.21,11.08]
[1720977910753,6.8847,145.25,145.17,45.0]
[1720977910955,10.77772812,145.24,145.21,11.08]
[1720977911153,3.89252812,145.23,145.21,11.08]
[1720977911351,6.8852,145.24,145.21,11.08]
[1720977911574,3.89228176,145.23,145.2,11.08]
[1720977911774,6.8852,145.24,145.2,11.08]
[1720977911961,3.89227602,145.23,145.2,11.08]
[1720977912168,17.9647,145.25,145.2,11.08]
[1720977912368,3.8923166,145.24,145.2,11.08]
[1720977912567,3.8923166,145.23,145.2,11.08]
[1720977912768,6.8847,145.25,145.21,11.08]
[1720977912967,3.89231821,145.24,145.21,11.08]
[1720977913152,3.89231821,145.23,145.21,11.08]
[1720977913351,6.8847,145.25,145.21,11.08]
[1720977913583,3.89227601,145.24,145.21,11.08]
[1720977913762,6.8838,145.27,145.23,11.08]
[1720977913963,3.89267856,145.26,145.24,11.08]
[1720977914174,6.8842,145.26,145.23,11.08]
[1720977914480,6.8842,145.26,145.22,11.08]
[1720977916378,17.965,145.25,145.2,11.08]
[1720977917162,6.884,145.27,145.21,11.08]
[1720977917467,14.97279279,145.26,145.21,11.08]
[1720977917664,17.964,145.27,145.18,11.08]
[1720977917970,3.89280178,145.26,145.22,11.08]
[1720977918162,6.8855,145.24,145.11,17.94612162]
[1720977918357,11.08,145.24,145.19,11.08]
[1720977918576,11.08,145.21,145.16,11.08]
[1720977918864,6.8857,145.23,145.17,11.08]
[1720977919059,6.8857,145.23,145.19,11.08]
[1720977919466,17.9657,145.23,145.18,11.08]
[1720977919775,6.8861,145.22,145.18,11.08]
[1720977919971,6.8856,145.23,145.18,11.08]
[1720977920278,17.9656,145.23,145.18,11.08]
[1720977920684,17.9656,145.23,145.11,44.52]
[1720977920989,17.9656,145.23,145.18,11.08]
[1720977923178,6.8861,145.22,145.18,11.08]
[1720977923777,17.2087,145.28,145.13,1.37746911]
[1720977923985,17.2087,145.28,145.2,11.08]
[1720977923986,11.08,145.25,145.2,11.08]
[1720977924167,10.7777647,145.24,145.2,11.08]
[1720977924367,6.8856,145.23,145.19,11.08]
[1720977925186,17.9656,145.23,145.18,11.08]
[1720977925983,6.8856,145.23,145.19,11.08]
[1720977926687,6.8861,145.22,145.12,65.0]
[1720977926869,6.8861,145.22,145.18,11.08]
[1720977927988,17.9661,145.22,145.17,11.08]
[1720977928793,17.9661,145.22,145.12,65.0]
[1720977929087,17.9661,145.22,145.16,11.08]
[1720977929873,13.456,145.21,145.16,11.08]
[1720977930072,24.536,145.21,145.16,11.08]
[1720977930477,13.456,145.21,145.16,11.08]
[1720977930673,6.5695,145.21,145.17,16.2707]
[1720977930873,6.5695,145.21,145.16,11.08]
[1720977931074,6.5695,145.21,145.17,11.08]
[1720977931887,33.2104,145.24,145.19,11.08]
[1720977932092,3.89035818,145.23,145.2,11.08]
[1720977932270,22.1304,145.24,145.2,11.08]
[1720977932475,10.77596327,145.23,145.19,11.08]
[1720977932677,6.8856,145.23,145.19,11.08]
[1720977932979,22.13,145.24,145.19,11.08]
[1720977933180,3.89032845,145.23,145.19,11.08]
[1720977933489,22.13,145.24,145.19,11.08]
[1720977933669,22.13,145.24,145.2,11.08]
[1720977935474,6.8858,145.23,145.2,11.08]
[1720977935685,6.8858,145.23,145.19,11.08]
[1720977936901,22.1299,145.24,145.19,11.08]
[1720977937119,6.8857,145.23,145.2,11.08]
[1720977938318,15.2448,145.24,145.2,11.08]
[1720977939382,22.1302,145.24,145.2,11.08]
[1720977940587,6.8856,145.23,145.14,6.6022]
[1720977940775,6.8856,145.23,145.2,11.08]
[1720977940982,6.8856,145.23,145.19,11.08]
[1720977941290,22.1301,145.24,145.21,11.08]
[1720977941804,15.2448,145.24,145.21,11.08]
[1720977941990,13.4852,145.25,145.21,11.08]
[1720977942191,3.890819,145.24,145.21,11.08]
[1720977942412,13.4852,145.25,145.21,11.08]
[1720977942613,3.89086458,145.24,145.22,11.08]
[1720977942817,6.6004,145.25,145.22,11.08]
[1720977942998,3.89087164,145.24,145.22,11.08]
[1720977943197,6.8843,145.26,145.22,11.08]
[1720977943413,3.89087429,145.25,145.22,11.08]
[1720977943612,3.89087429,145.24,145.22,11.08]
[1720977943805,6.8843,145.26,145.22,11.08]
[1720977944010,3.89087267,145.25,145.22,11.08]
[1720977944328,3.89087267,145.24,145.22,11.08]
[1720977944498,22.0754,145.28,145.18,11.08]
[1720977944499,28.9588,145.28,145.18,11.08]
[1720977944697,3.89084917,145.27,145.25,11.08]
[1720977944898,28.9588,145.28,145.25,11.08]
[1720977946625,6.8828,145.29,145.25,11.08]
[1720977946803,6.8828,145.29,145.26,11.08]
[1720977950023,11.08,145.31,145.26,11.08]
[1720977950231,6.8832,145.28,145.26,11.08]
[1720977953622,6.8832,145.28,145.25,11.08]
[1720977954508,6.8828,145.29,145.26,11.08]
[1720977957529,6.8828,145.29,145.27,1.23670365]
[1720977957733,6.8822,145.31,145.27,11.08]
[1720977957918,6.8822,145.31,145.28,11.08]
[1720977959628,13.4819,145.32,145.28,11.08]
[1720977959836,13.4819,145.32,145.29,1.37640222]
[1720977960015,6.881,145.33,145.3,1.37630006]
[1720977960217,6.881,145.33,145.3,12.45630006]
[1720977960411,6.881,145.33,145.3,11.08]
[1720977961124,6.8813,145.32,145.29,11.08]
[1720977961513,6.8813,145.32,145.28,11.08]
[1720977961714,6.8818,145.31,145.28,11.08]
[1720977962436,17.9615,145.32,145.28,11.08]
[1720977962922,17.9615,145.32,145.22,6.3155]
[1720977962923,17.2019,145.34,145.23,15.7702]
[1720977963126,17.2019,145.34,145.24,31.08]
[1720977963127,11.08,145.29,145.24,31.08]
[1720977964031,17.9628,145.29,145.23,15.7702]
[1720977964236,11.08,145.29,145.24,11.08]
[1720977970634,17.9624,145.3,145.25,11.08]
[1720977971721,6.882,145.31,145.26,11.08]
[1720977971941,17.962,145.31,145.27,1.3765721]
[1720977972237,17.962,145.31,145.23,15.7702]
[1720977972238,11.08,145.3,145.25,11.08]
[1720977972444,17.9625,145.3,145.25,11.08]
[1720977975447,6.8828,145.29,145.23,15.7702]
[1720977975640,17.9628,145.29,145.23,15.7702]
[1720977975946,11.08,145.29,145.24,11.08]
[1720977976547,17.9624,145.3,145.25,11.08]
[1720977979125,6.883,145.29,145.25,11.08]
[1720977979327,17.9624,145.3,145.25,11.08]
[1720977979728,11.08,145.3,145.25,11.08]
[1720977979951,12.9884,145.32,145.26,11.08]
[1720977980133,11.08,145.31,145.26,11.08]
[1720977980657,17.9619,145.31,145.26,11.08]
[1720977982951,6.1067,145.32,145.27,11.08]
[1720977982952,12.9881,145.32,145.27,11.08]
[1720977983452,24.0681,145.32,145.27,11.08]
[1720977984153,12.9881,145.32,145.27,11.08]
[1720977984354,24.0681,145.32,145.27,11.08]
[1720977984650,17.9619,145.31,145.26,11.08]
[1720977985027,6.8819,145.31,145.27,11.08]
[1720977985230,17.9619,145.31,145.26,11.08]
[1720977986154,6.8824,145.3,145.26,11.08]
[1720977987555,11.08,145.31,145.26,11.08]
[1720977987556,17.9619,145.31,145.26,11.08]
[1720977988059,17.9623,145.3,145.23,15.7702]
[1720977988253,17.9623,145.3,145.25,11.08]
[1720977989751,17.9623,145.3,145.24,45.0]
[1720977989930,6.8828,145.29,145.25,11.08]
[1720977990553,17.9623,145.3,145.25,11.08]
[1720977994955,11.08,145.3,145.25,11.08]
[1720977995745,29.4831,145.32,145.26,11.08]
[1720977996147,11.08,145.31,145.26,11.08]
[1720977996337,40.5631,145.32,145.27,11.08]
[1720977996938,11.08,145.31,145.26,11.08]
[1720977997645,29.4831,145.32,145.26,11.08]
[1720977997956,6.1067,145.32,145.27,11.08]
[1720977998134,12.9881,145.32,145.27,11.08]
[1720977998340,24.0681,145.32,145.27,11.08]
[1720977998745,6.8818,145.31,145.27,11.08]
[1720977999039,17.9623,145.3,145.23,15.7702]
[1720977999245,17.9623,145.3,145.25,11.08]
[1720978002462,11.08,145.3,145.25,11.08]
[1720978003472,6.1067,145.32,145.28,11.08]
[1720978004156,6.88,145.35,145.29,11.08]
[1720978004353,11.08,145.34,145.29,11.08]
[1720978007565,3.89561797,145.33,145.3,11.08]
[1720978007761,17.96,145.35,145.3,11.08]
[1720978007954,3.89562002,145.34,145.3,11.08]
[1720978008261,3.89562002,145.33,145.3,11.08]
[1720978008465,6.8804,145.34,145.3,11.08]
[1720978008768,17.96,145.35,145.3,11.08]
[1720978008944,3.89559477,145.34,145.3,11.08]
[1720978009145,6.88,145.35,145.3,11.08]
[1720978009359,3.89559477,145.34,145.3,11.08]
[1720978009565,17.96,145.35,145.3,11.08]
[1720978009737,3.89559282,145.34,145.3,11.08]
[1720978009939,17.96,145.35,145.3,11.08]
[1720978010162,3.89558905,145.34,145.3,11.08]
[1720978010465,17.96,145.35,145.3,11.08]
[1720978010640,3.89558824,145.34,145.3,11.08]
[1720978010840,17.96,145.35,145.3,11.08]
[1720978011146,3.89558905,145.34,145.3,11.08]
[1720978011363,17.96,145.35,145.3,11.08]
[1720978011569,3.89554773,145.34,145.3,11.08]
[1720978011861,6.88,145.35,145.3,11.08]
[1720978012063,3.89558721,145.34,145.3,11.08]
[1720978012256,6.8804,145.34,145.3,11.08]
[1720978014160,17.1958,145.39,145.32,11.08]
[1720978014364,14.97574157,145.38,145.33,11.08]
[1720978014564,10.77484157,145.37,145.33,11.08]
[1720978014768,6.8791,145.37,145.33,11.08]
[1720978015152,17.9586,145.38,145.33,11.08]
[1720978015351,3.89573607,145.37,145.34,11.08]
[1720978015548,3.89573607,145.36,145.34,11.08]
[1720978015973,3.89573607,145.36,145.28,1.37603888]
[1720978015974,3.89573607,145.36,145.33,11.08]
[1720978016563,6.879,145.37,145.33,11.08]
[1720978019149,22.1149,145.4,145.34,1.37600027]
[1720978019355,14.97247665,145.39,145.34,11.08]
[1720978019580,3.89247665,145.38,145.34,11.08]
[1720978019753,11.08,145.39,145.34,11.08]
[1720978020572,17.958,145.39,145.34,11.08]
[1720978020779,3.8927562,145.38,145.34,11.08]
[1720978020961,17.958,145.39,145.34,11.08]
[1720978021162,3.89304449,145.38,145.34,11.08]
[1720978021363,17.958,145.39,145.34,11.08]
[1720978022668,6.878,145.39,145.35,11.08]
[1720978022976,17.9576,145.4,145.35,11.08]
[1720978023180,3.89304756,145.39,145.35,11.08]
[1720978023370,17.9576,145.4,145.35,11.08]
[1720978023573,3.89300811,145.39,145.35,11.08]
[1720978023765,17.9576,145.4,145.35,11.08]
[1720978023965,10.77086681,145.39,145.32,15.3432]
[1720978024154,10.77086681,145.39,145.34,11.08]
[1720978024155,17.9581,145.39,145.34,11.08]
[1720978024582,11.08,145.38,145.33,11.08]
[1720978025362,11.08,145.38,145.32,15.3432]
[1720978025773,25.61902499,145.42,145.32,15.3432]